[Event "*** SCC Grand Prix: Titled Tuesday Blitz"]
[Site "Chess.com"]
[Date "2020.10.13"]
[Round "3"]
[White "Ural_bogatyr"]
[Black "Maksimus1998"]
[Result "0-1"]
[WhiteElo "2411"]
[BlackElo "2620"]
[TimeControl "180+1"]
[EndTime "10:29:52 PDT"]
[Termination "Maksimus1998 won by resignation"]

1. e4 {[%clk 0:03:00.9]} 1... c5 {[%clk 0:02:58.3]} 2. Nf3 {[%clk 0:03:00.6]}
2... e6 {[%clk 0:02:57.1]} 3. c3 {[%clk 0:02:59.7]} 3... d5 {[%clk 0:02:54.9]}
4. exd5 {[%clk 0:02:59.8]} 4... Qxd5 {[%clk 0:02:54.8]} 5. d4 {[%clk 0:03:00.4]}
5... Nf6 {[%clk 0:02:54.4]} 6. Be2 {[%clk 0:02:59.9]} 6... cxd4 {[%clk
0:02:52.1]} 7. cxd4 {[%clk 0:02:59.2]} 7... Bb4+ {[%clk 0:02:52]} 8. Nc3 {[%clk
0:02:58.8]} 8... O-O {[%clk 0:02:51.4]} 9. O-O {[%clk 0:02:57.6]} 9... Qa5
{[%clk 0:02:50.6]} 10. Bd2 {[%clk 0:02:54.9]} 10... Nc6 {[%clk 0:02:48.6]} 11.
a3 {[%clk 0:02:44.9]} 11... Bxc3 {[%clk 0:02:47.3]} 12. bxc3 {[%clk 0:02:41.7]}
12... Rd8 {[%clk 0:02:46.3]} 13. Qb3 {[%clk 0:02:35.7]} 13... b6 {[%clk
0:02:43.3]} 14. Rfd1 {[%clk 0:02:24.2]} 14... Bb7 {[%clk 0:02:38.7]} 15. Ne5
{[%clk 0:01:49.9]} 15... Qd5 {[%clk 0:02:27.7]} 16. Bc4 {[%clk 0:01:12.6]} 16...
Qd6 {[%clk 0:01:42.2]} 17. Nxc6 {[%clk 0:01:03.8]} 17... Qxc6 {[%clk 0:01:41.7]}
18. f3 {[%clk 0:01:04.2]} 18... Rac8 {[%clk 0:01:41.2]} 19. Bb5 {[%clk
0:01:02.7]} 19... Qd6 {[%clk 0:01:39.3]} 20. a4 {[%clk 0:01:01.1]} 20... Nd5
{[%clk 0:01:36.8]} 21. a5 {[%clk 0:00:57.8]} 21... a6 {[%clk 0:01:36.3]} 22. Bd3
{[%clk 0:00:49]} 22... b5 {[%clk 0:01:36.5]} 23. Rdc1 {[%clk 0:00:30.8]} 23...
Nf4 {[%clk 0:01:33.6]} 24. Bf1 {[%clk 0:00:29.4]} 24... Bd5 {[%clk 0:01:30.3]}
25. Qb2 {[%clk 0:00:27.2]} 25... h6 {[%clk 0:01:23.6]} 26. Qb4 {[%clk
0:00:20.2]} 26... g5 {[%clk 0:00:48.4]} 27. Qxd6 {[%clk 0:00:18.2]} 27... Rxd6
{[%clk 0:00:49.3]} 28. Kf2 {[%clk 0:00:11.6]} 28... Bc4 {[%clk 0:00:48.9]} 29.
Bxc4 {[%clk 0:00:08.1]} 29... Rxc4 {[%clk 0:00:49.8]} 30. Bxf4 {[%clk
0:00:06.8]} 30... gxf4 {[%clk 0:00:50.7]} 31. Ke2 {[%clk 0:00:07.6]} 31... Rdc6
{[%clk 0:00:50.2]} 32. Kd2 {[%clk 0:00:08.1]} 32... Kg7 {[%clk 0:00:50.1]} 33.
Rab1 {[%clk 0:00:05.9]} 33... Kf6 {[%clk 0:00:48.8]} 34. g3 {[%clk 0:00:05.5]}
34... Kf5 {[%clk 0:00:48.2]} 35. Rb3 {[%clk 0:00:02.8]} 35... h5 {[%clk
0:00:47.7]} 36. Re1 {[%clk 0:00:01.9]} 36... f6 {[%clk 0:00:47.5]} 37. Re4
{[%clk 0:00:02.3]} 37... fxg3 {[%clk 0:00:44.9]} 38. hxg3 {[%clk 0:00:03.2]}
38... Ra4 {[%clk 0:00:41.5]} 39. Rh4 {[%clk 0:00:03.7]} 39... Kg5 {[%clk
0:00:40]} 40. Re4 {[%clk 0:00:03.7]} 40... Ra2+ {[%clk 0:00:37.2]} 41. Kd3
{[%clk 0:00:03.6]} 41... Rf2 {[%clk 0:00:35]} 42. Ke3 {[%clk 0:00:03.1]} 42...
Rg2 {[%clk 0:00:32.6]} 43. f4+ {[%clk 0:00:02.5]} 43... Kf5 {[%clk 0:00:30.7]}
44. Kf3 {[%clk 0:00:02.4]} 44... Rc2 {[%clk 0:00:30.6]} 45. Re3 {[%clk
0:00:01.8]} 45... Ra2 {[%clk 0:00:30.7]} 46. Rb1 {[%clk 0:00:01.7]} 46... Rxa5
{[%clk 0:00:29.8]} 47. Rh1 {[%clk 0:00:02.3]} 47... Kg6 {[%clk 0:00:29.5]} 48.
g4 {[%clk 0:00:02.7]} 48... hxg4+ {[%clk 0:00:29.1]} 49. Kxg4 {[%clk 0:00:03.6]}
49... Ra3 {[%clk 0:00:29.1]} 50. Rg3 {[%clk 0:00:03.5]} 50... Raxc3 {[%clk
0:00:27.3]} 51. Rhg1 {[%clk 0:00:02.4]} 51... Rxg3+ {[%clk 0:00:26.5]} 52. Rxg3
{[%clk 0:00:03.3]} 52... b4 {[%clk 0:00:25.8]} 53. f5+ {[%clk 0:00:03.1]} 53...
exf5+ {[%clk 0:00:25.5]} 54. Kf4+ {[%clk 0:00:04]} 54... Kf7 {[%clk 0:00:25.9]}
55. Kxf5 {[%clk 0:00:04.4]} 55... a5 {[%clk 0:00:25.8]} 56. Rh3 {[%clk
0:00:04.6]} 56... Rb6 {[%clk 0:00:24]} 57. Rh7+ {[%clk 0:00:05]} 57... Kg8
{[%clk 0:00:24.2]} 58. Ra7 {[%clk 0:00:03.9]} 58... b3 {[%clk 0:00:23.6]} 59. d5
{[%clk 0:00:02.9]} 59... b2 {[%clk 0:00:23.1]} 60. Kg6 {[%clk 0:00:02.7]} 0-1

[Event "*** SCC Grand Prix: Titled Tuesday Blitz"]
[Site "Chess.com"]
[Date "2020.10.13"]
[Round "3"]
[White "Durarbayli"]
[Black "simplerXiao"]
[Result "1-0"]
[WhiteElo "2791"]
[BlackElo "2448"]
[TimeControl "180+1"]
[EndTime "10:29:54 PDT"]
[Termination "Durarbayli won by checkmate"]

1. e4 {[%clk 0:03:00.9]} 1... c5 {[%clk 0:02:56.6]} 2. b3 {[%clk 0:03:00]} 2...
e6 {[%clk 0:02:54.4]} 3. Nf3 {[%clk 0:02:59.2]} 3... Nc6 {[%clk 0:02:54.9]} 4.
Bb2 {[%clk 0:02:56.3]} 4... d6 {[%clk 0:02:50.3]} 5. d4 {[%clk 0:02:54.4]} 5...
cxd4 {[%clk 0:02:49.5]} 6. Nxd4 {[%clk 0:02:55.3]} 6... Nf6 {[%clk 0:02:48.7]}
7. Nc3 {[%clk 0:02:55.2]} 7... Be7 {[%clk 0:02:47.4]} 8. g4 {[%clk 0:02:47.2]}
8... O-O {[%clk 0:02:45.9]} 9. g5 {[%clk 0:02:46.4]} 9... Nd7 {[%clk 0:02:40.3]}
10. h4 {[%clk 0:02:44.7]} 10... Nde5 {[%clk 0:02:38.2]} 11. Be2 {[%clk
0:02:42.4]} 11... Qb6 {[%clk 0:02:23]} 12. Nxc6 {[%clk 0:02:20.7]} 12... Nxc6
{[%clk 0:02:21.5]} 13. Qd2 {[%clk 0:02:17.4]} 13... Qd4 {[%clk 0:02:17.4]} 14.
f4 {[%clk 0:02:00.1]} 14... Qxd2+ {[%clk 0:02:04]} 15. Kxd2 {[%clk 0:02:01]}
15... f5 {[%clk 0:02:03.8]} 16. Raf1 {[%clk 0:01:50.1]} 16... fxe4 {[%clk
0:01:51.7]} 17. Nxe4 {[%clk 0:01:49.6]} 17... d5 {[%clk 0:01:51.6]} 18. Ng3
{[%clk 0:01:44.9]} 18... Bb4+ {[%clk 0:01:43]} 19. Kd1 {[%clk 0:01:37.2]} 19...
d4 {[%clk 0:01:30]} 20. Bc4 {[%clk 0:01:26.6]} 20... Na5 {[%clk 0:01:18.7]} 21.
Bd3 {[%clk 0:01:24]} 21... Bc3 {[%clk 0:01:12.2]} 22. Ba3 {[%clk 0:01:13.1]}
22... Re8 {[%clk 0:01:05.1]} 23. Ne4 {[%clk 0:01:11.8]} 23... e5 {[%clk
0:01:02]} 24. f5 {[%clk 0:01:09.4]} 24... Nc6 {[%clk 0:00:56.4]} 25. Bc4+ {[%clk
0:00:59.9]} 25... Kh8 {[%clk 0:00:55.2]} 26. Nd6 {[%clk 0:00:48.2]} 26... Rf8
{[%clk 0:00:50.6]} 27. Nf7+ {[%clk 0:00:45.8]} 27... Rxf7 {[%clk 0:00:48.4]} 28.
Bxf7 {[%clk 0:00:46.7]} 28... e4 {[%clk 0:00:48.3]} 29. Rhg1 {[%clk 0:00:37.8]}
29... Ne5 {[%clk 0:00:47.7]} 30. Bd5 {[%clk 0:00:36.2]} 30... e3 {[%clk
0:00:46.2]} 31. Ke2 {[%clk 0:00:30.4]} 31... Bd7 {[%clk 0:00:45.1]} 32. Be4
{[%clk 0:00:20]} 32... a5 {[%clk 0:00:36.2]} 33. Bd6 {[%clk 0:00:17.7]} 33...
Bb5+ {[%clk 0:00:34.5]} 34. Bd3 {[%clk 0:00:18.2]} 34... Nxd3 {[%clk 0:00:34.4]}
35. cxd3 {[%clk 0:00:19.1]} 35... Rd8 {[%clk 0:00:33.7]} 36. f6 {[%clk
0:00:17.5]} 36... Bb4 {[%clk 0:00:20.6]} 37. Bxb4 {[%clk 0:00:13.5]} 37... axb4
{[%clk 0:00:21.5]} 38. Rf4 {[%clk 0:00:14]} 38... Kg8 {[%clk 0:00:19.7]} 39.
Rgg4 {[%clk 0:00:12.1]} 39... Rc8 {[%clk 0:00:18.9]} 40. Rxd4 {[%clk 0:00:12.2]}
40... Rc2+ {[%clk 0:00:19.8]} 41. Kxe3 {[%clk 0:00:12.7]} 41... gxf6 {[%clk
0:00:18.8]} 42. gxf6+ {[%clk 0:00:13.3]} 42... Kf7 {[%clk 0:00:19.7]} 43. Rgf4
{[%clk 0:00:13.8]} 43... Rc1 {[%clk 0:00:19.2]} 44. Rxb4 {[%clk 0:00:14.3]}
44... Re1+ {[%clk 0:00:19.3]} 45. Kd2 {[%clk 0:00:14.1]} 45... Re5 {[%clk
0:00:19.2]} 46. a4 {[%clk 0:00:13.2]} 46... Bc6 {[%clk 0:00:19.7]} 47. Rbd4
{[%clk 0:00:13.6]} 47... Rc5 {[%clk 0:00:18.5]} 48. Rc4 {[%clk 0:00:13.1]} 48...
Re5 {[%clk 0:00:14.1]} 49. Kc3 {[%clk 0:00:14]} 49... Re1 {[%clk 0:00:13]} 50.
Kb4 {[%clk 0:00:13.9]} 50... Rd1 {[%clk 0:00:13.6]} 51. Rcd4 {[%clk 0:00:12.7]}
51... Rd2 {[%clk 0:00:13.8]} 52. Rd6 {[%clk 0:00:11]} 52... Rc2 {[%clk
0:00:13.3]} 53. d4 {[%clk 0:00:11.1]} 53... Rb2 {[%clk 0:00:13.8]} 54. d5 {[%clk
0:00:11.1]} 54... Be8 {[%clk 0:00:14.6]} 55. Re6 {[%clk 0:00:10.9]} 55... h5
{[%clk 0:00:15.4]} 56. Re7+ {[%clk 0:00:11.2]} 56... Kf8 {[%clk 0:00:16]} 57.
Rxb7 {[%clk 0:00:11.4]} 57... Bg6 {[%clk 0:00:16.9]} 58. Rb8+ {[%clk 0:00:11.6]}
58... Kf7 {[%clk 0:00:15.5]} 59. Rb7+ {[%clk 0:00:12.5]} 59... Kf8 {[%clk
0:00:15.9]} 60. f7 {[%clk 0:00:13.4]} 60... Kg7 {[%clk 0:00:16]} 61. Rb8 {[%clk
0:00:14.3]} 61... Bxf7 {[%clk 0:00:15.8]} 62. Rb7 {[%clk 0:00:14.7]} 62... Kg6
{[%clk 0:00:15.9]} 63. Rbxf7 {[%clk 0:00:13.5]} 63... Rd2 {[%clk 0:00:16.8]} 64.
R4f6# {[%clk 0:00:13.1]} 1-0

[Event "*** SCC Grand Prix: Titled Tuesday Blitz"]
[Site "Chess.com"]
[Date "2020.10.13"]
[Round "3"]
[White "TotsukaBlade"]
[Black "Larina_Marija"]
[Result "1/2-1/2"]
[WhiteElo "2419"]
[BlackElo "2260"]
[TimeControl "180+1"]
[EndTime "10:29:57 PDT"]
[Termination "Game drawn by repetition"]

1. e4 {[%clk 0:03:00.9]} 1... c6 {[%clk 0:02:59.6]} 2. d4 {[%clk 0:03:00.9]}
2... d5 {[%clk 0:02:59.9]} 3. exd5 {[%clk 0:03:01.8]} 3... cxd5 {[%clk
0:03:00.2]} 4. Bd3 {[%clk 0:03:02]} 4... Nc6 {[%clk 0:03:00.1]} 5. c3 {[%clk
0:02:59.5]} 5... g6 {[%clk 0:02:59.6]} 6. h3 {[%clk 0:02:57]} 6... Bg7 {[%clk
0:02:59]} 7. Bf4 {[%clk 0:02:50]} 7... Nf6 {[%clk 0:02:58.8]} 8. Nf3 {[%clk
0:02:49.6]} 8... h6 {[%clk 0:02:52.2]} 9. O-O {[%clk 0:02:48.9]} 9... O-O {[%clk
0:02:51.9]} 10. Re1 {[%clk 0:02:41.3]} 10... Be6 {[%clk 0:02:51.5]} 11. Nbd2
{[%clk 0:02:40.4]} 11... Rc8 {[%clk 0:02:50.8]} 12. Nb3 {[%clk 0:02:37.6]} 12...
b6 {[%clk 0:02:49]} 13. Ne5 {[%clk 0:02:35.3]} 13... Nxe5 {[%clk 0:02:47]} 14.
Bxe5 {[%clk 0:02:34.6]} 14... Qd7 {[%clk 0:02:35.3]} 15. a4 {[%clk 0:02:26.2]}
15... Ne8 {[%clk 0:02:21.1]} 16. a5 {[%clk 0:02:04.5]} 16... Nd6 {[%clk
0:02:08.9]} 17. axb6 {[%clk 0:02:00.5]} 17... axb6 {[%clk 0:02:09.8]} 18. Ra6
{[%clk 0:01:54.9]} 18... Bxe5 {[%clk 0:01:52.3]} 19. dxe5 {[%clk 0:01:45.9]}
19... Nc4 {[%clk 0:01:51.5]} 20. Bxc4 {[%clk 0:01:32.2]} 20... dxc4 {[%clk
0:01:52.4]} 21. Nd4 {[%clk 0:01:27.5]} 21... Rb8 {[%clk 0:01:44.4]} 22. Qd2
{[%clk 0:01:19.9]} 22... Kg7 {[%clk 0:01:43.7]} 23. Rea1 {[%clk 0:01:20.1]}
23... Rb7 {[%clk 0:01:41.9]} 24. Qe3 {[%clk 0:01:12.5]} 24... b5 {[%clk
0:01:38.4]} 25. Nxe6+ {[%clk 0:01:10.4]} 25... fxe6 {[%clk 0:01:38.4]} 26. Qg3
{[%clk 0:00:49.9]} 26... Qd5 {[%clk 0:01:32.1]} 27. Qe3 {[%clk 0:00:44.8]} 27...
Rf5 {[%clk 0:01:30.4]} 28. f4 {[%clk 0:00:39.8]} 28... Rd7 {[%clk 0:01:28.3]}
29. Ra7 {[%clk 0:00:33.5]} 29... Rf8 {[%clk 0:01:23.8]} 30. Rxd7 {[%clk
0:00:32.4]} 30... Qxd7 {[%clk 0:01:24.7]} 31. Ra7 {[%clk 0:00:32.9]} 31... Qd1+
{[%clk 0:01:09.8]} 32. Kh2 {[%clk 0:00:32.9]} 32... Rf7 {[%clk 0:01:06]} 33. Rb7
{[%clk 0:00:24.6]} 33... Qf1 {[%clk 0:00:52.2]} 34. Rxb5 {[%clk 0:00:21.1]}
34... Rxf4 {[%clk 0:00:47.5]} 35. Rb7 {[%clk 0:00:20.6]} 35... Rf7 {[%clk
0:00:43.8]} 36. Qe4 {[%clk 0:00:16.9]} 36... h5 {[%clk 0:00:18.2]} 37. Rc7
{[%clk 0:00:16.6]} 37... Qd3 {[%clk 0:00:11.2]} 38. Qxd3 {[%clk 0:00:15.2]}
38... cxd3 {[%clk 0:00:10.9]} 39. Rd7 {[%clk 0:00:15.8]} 39... Rf2 {[%clk
0:00:10.4]} 40. Rxd3 {[%clk 0:00:15.9]} 40... Rxb2 {[%clk 0:00:10.4]} 41. Rd7
{[%clk 0:00:16.3]} 41... Kf7 {[%clk 0:00:10]} 42. Kg3 {[%clk 0:00:14.7]} 42...
Rc2 {[%clk 0:00:10.2]} 43. Rd3 {[%clk 0:00:14.3]} 43... g5 {[%clk 0:00:10.2]}
44. Kf3 {[%clk 0:00:14.2]} 44... Kg6 {[%clk 0:00:10.3]} 45. g3 {[%clk
0:00:12.9]} 45... Kf5 {[%clk 0:00:10.1]} 46. g4+ {[%clk 0:00:13]} 46... hxg4+
{[%clk 0:00:10.2]} 47. hxg4+ {[%clk 0:00:13.9]} 47... Kxe5 {[%clk 0:00:10.8]}
48. Re3+ {[%clk 0:00:14.6]} 48... Kd6 {[%clk 0:00:10.4]} 49. Kg3 {[%clk
0:00:12.8]} 49... e5 {[%clk 0:00:10.2]} 50. Kf3 {[%clk 0:00:12.6]} 50... Ke6
{[%clk 0:00:10.3]} 51. Rd3 {[%clk 0:00:12]} 51... Kf6 {[%clk 0:00:08.2]} 52. Ke4
{[%clk 0:00:10.2]} 52... Re2+ {[%clk 0:00:07.1]} 53. Kf3 {[%clk 0:00:10.2]}
53... Rc2 {[%clk 0:00:07.4]} 54. Re3 {[%clk 0:00:09.2]} 54... e6 {[%clk
0:00:07.2]} 55. Rd3 {[%clk 0:00:09.2]} 55... Rc1 {[%clk 0:00:06.3]} 56. Re3
{[%clk 0:00:09.1]} 56... Rc2 {[%clk 0:00:06.2]} 57. Rd3 {[%clk 0:00:09.3]} 57...
Rc1 {[%clk 0:00:06.4]} 58. Re3 {[%clk 0:00:09.9]} 58... Rc2 {[%clk 0:00:06.7]}
1/2-1/2

[Event "*** SCC Grand Prix: Titled Tuesday Blitz"]
[Site "Chess.com"]
[Date "2020.10.13"]
[Round "3"]
[White "rpragchess"]
[Black "olksuna"]
[Result "1/2-1/2"]
[WhiteElo "2897"]
[BlackElo "2624"]
[TimeControl "180+1"]
[EndTime "10:30:04 PDT"]
[Termination "Game drawn by repetition"]

1. e4 {[%clk 0:03:00.9]} 1... Nf6 {[%clk 0:03:00]} 2. e5 {[%clk 0:02:59.7]} 2...
Nd5 {[%clk 0:03:00.3]} 3. d4 {[%clk 0:03:00.3]} 3... d6 {[%clk 0:03:00.4]} 4.
Nf3 {[%clk 0:03:00.6]} 4... Bg4 {[%clk 0:02:59.9]} 5. Be2 {[%clk 0:02:59]} 5...
e6 {[%clk 0:02:59.8]} 6. O-O {[%clk 0:02:52]} 6... Be7 {[%clk 0:02:57.4]} 7. c4
{[%clk 0:02:50.5]} 7... Nb6 {[%clk 0:02:57.4]} 8. Nc3 {[%clk 0:02:51]} 8... O-O
{[%clk 0:02:54.4]} 9. h3 {[%clk 0:02:49.1]} 9... Bh5 {[%clk 0:02:52.7]} 10. Be3
{[%clk 0:02:47.3]} 10... d5 {[%clk 0:02:49.8]} 11. c5 {[%clk 0:02:38.7]} 11...
Nc4 {[%clk 0:02:49.6]} 12. Bc1 {[%clk 0:02:26.7]} 12... b6 {[%clk 0:02:47.3]}
13. b3 {[%clk 0:02:23.7]} 13... Na5 {[%clk 0:02:46.6]} 14. cxb6 {[%clk
0:01:54.4]} 14... axb6 {[%clk 0:02:46.2]} 15. Be3 {[%clk 0:01:52.3]} 15... c5
{[%clk 0:02:44.3]} 16. Nb5 {[%clk 0:01:52.3]} 16... Nac6 {[%clk 0:02:34.5]} 17.
g4 {[%clk 0:01:35]} 17... Bg6 {[%clk 0:02:33.8]} 18. Bf4 {[%clk 0:01:35.5]}
18... Nd7 {[%clk 0:02:29.6]} 19. Bg3 {[%clk 0:01:32.8]} 19... Be4 {[%clk
0:02:19]} 20. Qd2 {[%clk 0:01:18.6]} 20... Bxf3 {[%clk 0:02:11.9]} 21. Bxf3
{[%clk 0:01:18.5]} 21... cxd4 {[%clk 0:02:12.3]} 22. Qe2 {[%clk 0:01:16]} 22...
d3 {[%clk 0:02:01.2]} 23. Qe3 {[%clk 0:01:10.4]} 23... Bc5 {[%clk 0:01:59.3]}
24. Qe1 {[%clk 0:01:09.2]} 24... Qb8 {[%clk 0:01:36.4]} 25. Bg2 {[%clk
0:00:41.9]} 25... Nd4 {[%clk 0:01:09.8]} 26. Nxd4 {[%clk 0:00:13.6]} 26... Bxd4
{[%clk 0:01:10.7]} 27. Rd1 {[%clk 0:00:12.4]} 27... Bxe5 {[%clk 0:01:03.9]} 28.
f4 {[%clk 0:00:12.5]} 28... Bd6 {[%clk 0:00:49.6]} 29. Rxd3 {[%clk 0:00:05.9]}
29... Rxa2 {[%clk 0:00:47.7]} 30. f5 {[%clk 0:00:06]} 30... Bxg3 {[%clk
0:00:39.8]} 31. Rxg3 {[%clk 0:00:06.8]} 31... Qe5 {[%clk 0:00:32]} 32. Re3
{[%clk 0:00:05.5]} 32... Qd4 {[%clk 0:00:28.2]} 33. fxe6 {[%clk 0:00:03.9]}
33... fxe6 {[%clk 0:00:27.6]} 34. Rxf8+ {[%clk 0:00:03.5]} 34... Nxf8 {[%clk
0:00:27.4]} 35. Kh2 {[%clk 0:00:03.8]} 35... Qf4+ {[%clk 0:00:26.8]} 36. Kg1
{[%clk 0:00:03.4]} 36... h6 {[%clk 0:00:27.1]} 37. Rf3 {[%clk 0:00:03.2]} 37...
Qd4+ {[%clk 0:00:27]} 38. Kh2 {[%clk 0:00:03.7]} 38... Qc5 {[%clk 0:00:17.6]}
39. h4 {[%clk 0:00:03.2]} 39... Qd6+ {[%clk 0:00:17.5]} 40. Kh3 {[%clk 0:00:03]}
40... e5 {[%clk 0:00:15.9]} 41. Rf5 {[%clk 0:00:02.5]} 41... Ne6 {[%clk
0:00:14]} 42. Qg3 {[%clk 0:00:02.2]} 42... Nf4+ {[%clk 0:00:13.4]} 43. Rxf4
{[%clk 0:00:02.8]} 43... exf4 {[%clk 0:00:13.7]} 44. Qd3 {[%clk 0:00:03.7]}
44... Qe5 {[%clk 0:00:06.5]} 45. Bxd5+ {[%clk 0:00:03.6]} 45... Kh8 {[%clk
0:00:04.8]} 46. Bf3 {[%clk 0:00:04.2]} 46... Qe3 {[%clk 0:00:03.4]} 47. Qd8+
{[%clk 0:00:04.4]} 47... Kh7 {[%clk 0:00:03.7]} 48. Qd5 {[%clk 0:00:05.3]} 48...
Rf2 {[%clk 0:00:02.7]} 49. Qf5+ {[%clk 0:00:05.3]} 49... Kg8 {[%clk 0:00:02]}
50. Qc8+ {[%clk 0:00:05.6]} 50... Kf7 {[%clk 0:00:02.5]} 51. Qd7+ {[%clk
0:00:05.5]} 51... Kf6 {[%clk 0:00:03]} 52. Qd6+ {[%clk 0:00:04.9]} 52... Kf7
{[%clk 0:00:03.8]} 53. Qd7+ {[%clk 0:00:04.5]} 53... Kg8 {[%clk 0:00:04.7]} 54.
Qc8+ {[%clk 0:00:04.3]} 54... Kf7 {[%clk 0:00:04.9]} 55. Qd7+ {[%clk 0:00:03.4]}
1/2-1/2

[Event "*** SCC Grand Prix: Titled Tuesday Blitz"]
[Site "Chess.com"]
[Date "2020.10.13"]
[Round "3"]
[White "ferdipy"]
[Black "manitodeplomo"]
[Result "0-1"]
[WhiteElo "2323"]
[BlackElo "2626"]
[TimeControl "180+1"]
[EndTime "10:30:04 PDT"]
[Termination "manitodeplomo won on time"]

1. e4 {[%clk 0:03:00.9]} 1... g6 {[%clk 0:02:58.4]} 2. d4 {[%clk 0:03:00.8]}
2... Bg7 {[%clk 0:02:57.6]} 3. Nc3 {[%clk 0:03:01.4]} 3... c5 {[%clk 0:02:58]}
4. Be3 {[%clk 0:02:58]} 4... Qa5 {[%clk 0:02:55.4]} 5. Nf3 {[%clk 0:02:55.8]}
5... Nf6 {[%clk 0:02:53.6]} 6. Bd3 {[%clk 0:02:39.3]} 6... Nc6 {[%clk
0:02:52.3]} 7. dxc5 {[%clk 0:02:36.1]} 7... O-O {[%clk 0:02:49.4]} 8. h3 {[%clk
0:02:23.9]} 8... b6 {[%clk 0:02:48.3]} 9. cxb6 {[%clk 0:02:23.6]} 9... axb6
{[%clk 0:02:49.2]} 10. O-O {[%clk 0:02:23.9]} 10... Rd8 {[%clk 0:02:22.2]} 11.
Qd2 {[%clk 0:02:14]} 11... d5 {[%clk 0:02:20.3]} 12. exd5 {[%clk 0:02:06.2]}
12... Nxd5 {[%clk 0:02:20.4]} 13. Nxd5 {[%clk 0:02:07.1]} 13... Rxd5 {[%clk
0:01:55.8]} 14. Qxa5 {[%clk 0:02:03.3]} 14... bxa5 {[%clk 0:01:55.6]} 15. Be4
{[%clk 0:01:55.7]} 15... Rd6 {[%clk 0:01:55.4]} 16. Bc5 {[%clk 0:01:36.1]} 16...
Re6 {[%clk 0:01:54.7]} 17. Bd5 {[%clk 0:01:35.5]} 17... Bxb2 {[%clk 0:01:49.6]}
18. Rab1 {[%clk 0:01:31.1]} 18... Bc3 {[%clk 0:01:46.8]} 19. Bxe6 {[%clk
0:01:29.7]} 19... Bxe6 {[%clk 0:01:47.7]} 20. a4 {[%clk 0:01:23.6]} 20... Rc8
{[%clk 0:01:43.6]} 21. Rfd1 {[%clk 0:01:11.8]} 21... Bf5 {[%clk 0:01:27.4]} 22.
Rdc1 {[%clk 0:01:00.7]} 22... f6 {[%clk 0:01:22.7]} 23. Rb6 {[%clk 0:00:59.3]}
23... Kf7 {[%clk 0:01:18]} 24. Ne1 {[%clk 0:00:50.3]} 24... Nd4 {[%clk 0:00:55]}
25. Ba3 {[%clk 0:00:28.4]} 25... Ne2+ {[%clk 0:00:52.4]} 26. Kf1 {[%clk
0:00:27.7]} 26... Nxc1 {[%clk 0:00:53]} 27. Bxc1 {[%clk 0:00:28.6]} 27... Bxe1
{[%clk 0:00:50.5]} 28. Kxe1 {[%clk 0:00:28.6]} 28... Bxc2 {[%clk 0:00:50.4]} 29.
Ba3 {[%clk 0:00:23.1]} 29... Rc7 {[%clk 0:00:40.1]} 30. Ra6 {[%clk 0:00:21]}
30... Bxa4 {[%clk 0:00:39.5]} 31. Rxa5 {[%clk 0:00:21.4]} 31... Bb3 {[%clk
0:00:35]} 32. Rb5 {[%clk 0:00:20.5]} 32... Be6 {[%clk 0:00:32.7]} 33. Rc5 {[%clk
0:00:20.4]} 33... Rb7 {[%clk 0:00:31.7]} 34. h4 {[%clk 0:00:19.4]} 34... h6
{[%clk 0:00:31.6]} 35. g3 {[%clk 0:00:19.7]} 35... g5 {[%clk 0:00:31.8]} 36. Rc3
{[%clk 0:00:20.1]} 36... Ra7 {[%clk 0:00:29.9]} 37. hxg5 {[%clk 0:00:19.8]}
37... hxg5 {[%clk 0:00:29.6]} 38. Kd2 {[%clk 0:00:20]} 38... Rd7+ {[%clk
0:00:29]} 39. Ke3 {[%clk 0:00:20.2]} 39... Ra7 {[%clk 0:00:27.5]} 40. f4 {[%clk
0:00:19.8]} 40... gxf4+ {[%clk 0:00:27]} 41. gxf4 {[%clk 0:00:20.7]} 41... Bd5
{[%clk 0:00:26]} 42. Bc5 {[%clk 0:00:18.9]} 42... Ra4 {[%clk 0:00:24.9]} 43. Bd4
{[%clk 0:00:15.4]} 43... e6 {[%clk 0:00:25.2]} 44. Rc7+ {[%clk 0:00:15.4]} 44...
Kg6 {[%clk 0:00:25.2]} 45. Rc3 {[%clk 0:00:15.5]} 45... Kf5 {[%clk 0:00:25.3]}
46. Rd3 {[%clk 0:00:13.3]} 46... Ra2 {[%clk 0:00:23.8]} 47. Rc3 {[%clk
0:00:11.4]} 47... Rh2 {[%clk 0:00:22.4]} 48. Rc5 {[%clk 0:00:06.8]} 48... Rh3+
{[%clk 0:00:21.3]} 49. Kf2 {[%clk 0:00:07.3]} 49... Kxf4 {[%clk 0:00:20.4]} 50.
Bxf6 {[%clk 0:00:06.9]} 50... Rh2+ {[%clk 0:00:18.9]} 51. Kf1 {[%clk 0:00:04.1]}
51... Ra2 {[%clk 0:00:19.1]} 52. Rc1 {[%clk 0:00:03.3]} 52... Be4 {[%clk
0:00:14.5]} 53. Re1 {[%clk 0:00:03.5]} 53... e5 {[%clk 0:00:13.7]} 54. Bh4
{[%clk 0:00:02.2]} 54... Bd3+ {[%clk 0:00:09.9]} 55. Kg1 {[%clk 0:00:01.5]}
55... e4 {[%clk 0:00:10.2]} 56. Bf2 {[%clk 0:00:02.1]} 56... Ra6 {[%clk
0:00:09.5]} 57. Be3+ {[%clk 0:00:02.6]} 57... Kf3 {[%clk 0:00:09.5]} 58. Bh6
{[%clk 0:00:01.8]} 58... Rg6+ {[%clk 0:00:09.3]} 59. Kh2 {[%clk 0:00:02.3]}
59... Rxh6+ {[%clk 0:00:09.4]} 60. Kg1 {[%clk 0:00:03.2]} 60... Rg6+ {[%clk
0:00:09.4]} 0-1